bitfinex/quotes_BTCUSD_20250602
["timestamp","ask_amount","ask_price","bid_price","bid_amount"]
[1748857713750,0.002,104630.0,104620.0,1.24807735]
[1748857714276,0.002,104630.0,104620.0,1.24807655]
[1748857714481,0.002,104630.0,104620.0,1.22348105]
[1748857714691,0.002,104630.0,104620.0,1.24807443]
[1748857714892,0.002,104630.0,104620.0,0.75218201]
[1748857715318,0.002,104630.0,104620.0,1.05226204]
[1748857715965,0.002,104630.0,104620.0,1.05226116]
[1748857716558,0.002,104630.0,104620.0,1.0455537]
[1748857716764,0.002,104630.0,104620.0,1.05226061]
[1748857716966,0.002,104630.0,104620.0,1.05226075]
[1748857717192,0.002,104630.0,104620.0,1.05226067]
[1748857717425,0.002,104630.0,104620.0,1.05226058]
[1748857717579,0.002,104630.0,104620.0,1.05226065]
[1748857717784,0.002,104630.0,104620.0,1.0522602]
[1748857717953,0.002,104630.0,104620.0,1.05226018]
[1748857718155,0.002,104630.0,104620.0,1.05226017]
[1748857718843,0.002,104630.0,104620.0,1.45411259]
[1748857719186,0.002,104630.0,104620.0,1.45411174]
[1748857719408,0.002,104630.0,104620.0,1.45411145]
[1748857719824,0.002,104630.0,104620.0,1.45411142]
[1748857720032,0.002,104630.0,104620.0,1.45411141]
[1748857720599,0.002,104630.0,104620.0,1.45411145]
[1748857720808,0.002,104630.0,104620.0,1.15403145]
[1748857721032,0.002,104630.0,104620.0,1.45411145]
[1748857721241,0.002,104630.0,104620.0,1.44740498]
[1748857721447,0.002,104630.0,104620.0,1.45411236]
[1748857721657,0.002,104630.0,104620.0,1.74671236]
[1748857722461,0.002,104630.0,104620.0,1.72882792]
[1748857722670,0.002,104630.0,104620.0,1.74671292]
[1748857723087,0.002,104630.0,104620.0,1.32697557]
[1748857723324,0.002,104630.0,104620.0,1.34486103]
[1748857723760,0.002,104630.0,104620.0,1.34486101]
[1748857723968,0.002,104630.0,104620.0,1.34486106]
[1748857724330,0.002,104630.0,104620.0,1.34486124]
[1748857724992,0.002,104630.0,104620.0,1.37776124]
[1748857725629,0.002,104630.0,104620.0,1.77961366]
[1748857725847,0.002,104630.0,104620.0,1.77961382]
[1748857726085,0.002,104630.0,104620.0,1.48701382]
[1748857726289,0.002,104630.0,104620.0,1.50155467]
[1748857726495,0.002,104630.0,104620.0,1.50155195]
[1748857726711,0.002,104630.0,104620.0,1.50825765]
[1748857726915,0.002,104630.0,104620.0,1.50155053]
[1748857727347,4.86e-05,104640.0,104630.0,0.65382111]
[1748857727589,4.86e-05,104640.0,104630.0,1.20751456]
[1748857728423,4.86e-05,104640.0,104630.0,1.18297896]
[1748857728639,4.86e-05,104640.0,104630.0,1.20756328]
[1748857729683,4.86e-05,104640.0,104630.0,1.20856328]
[1748857729910,4.86e-05,104640.0,104630.0,1.20856478]
[1748857730064,4.86e-05,104640.0,104630.0,1.20185956]
[1748857730291,4.86e-05,104640.0,104630.0,1.20856418]
[1748857730497,4.86e-05,104640.0,104630.0,1.20856381]
[1748857730699,4.86e-05,104640.0,104630.0,1.20856427]
[1748857731078,4.86e-05,104640.0,104630.0,1.20185919]
[1748857731308,4.86e-05,104640.0,104630.0,1.20856483]
[1748857731509,4.86e-05,104640.0,104630.0,1.18397896]
[1748857731717,4.86e-05,104640.0,104630.0,1.25821467]
[1748857732751,4.86e-05,104640.0,104630.0,0.85636261]
[1748857732961,4.86e-05,104640.0,104630.0,1.11675254]
[1748857733872,4.86e-05,104640.0,104630.0,1.11675651]
[1748857734517,0.44701501,104660.0,104630.0,1.11005098]
[1748857734738,0.44701501,104660.0,104650.0,0.21977911]
[1748857734739,0.26472027,104660.0,104650.0,0.21977911]
[1748857734978,0.26472027,104660.0,104650.0,0.23766355]
[1748857735182,0.26472027,104660.0,104650.0,0.23766636]
[1748857735591,0.26472027,104660.0,104650.0,0.23766605]
[1748857735834,0.08528566,104670.0,104660.0,0.21975838]
[1748857736053,0.03807711,104670.0,104660.0,0.22931248]
[1748857736306,0.04763021,104670.0,104660.0,0.34081791]
[1748857736509,0.01910429,104680.0,104670.0,0.21973683]
[1748857736718,0.01910429,104680.0,104670.0,0.21973702]
[1748857736719,0.42095671,104680.0,104670.0,0.21973702]
[1748857736926,0.43065491,104680.0,104670.0,0.21973702]
[1748857737129,0.62171346,104680.0,104670.0,0.21978815]
[1748857737352,0.44976038,104680.0,104670.0,0.21978815]
[1748857738003,0.44020755,104680.0,104670.0,0.21978815]
[1748857738264,0.48319753,104680.0,104670.0,0.22078815]
[1748857739160,0.48619753,104680.0,104670.0,0.22078815]
[1748857739365,0.47664479,104680.0,104670.0,0.22078815]
[1748857739579,0.45753978,104680.0,104670.0,0.22078815]
[1748857739785,0.49598171,104680.0,104670.0,0.22078815]
[1748857740185,0.45799228,104680.0,104670.0,0.22078815]
[1748857740418,0.04658776,104680.0,104670.0,0.23688815]
[1748857740622,0.46754465,104680.0,104670.0,0.23688815]
[1748857740824,0.46754465,104680.0,104670.0,0.24688815]
[1748857741030,0.48664957,104680.0,104670.0,0.24688815]
[1748857741677,0.08479715,104680.0,104670.0,0.24688815]
[1748857741941,0.08479715,104680.0,104670.0,0.23078815]
[1748857742350,0.08479697,104680.0,104670.0,0.23078815]
[1748857742549,0.09434961,104680.0,104670.0,0.23078815]
[1748857742749,0.08479697,104680.0,104670.0,0.24668815]
[1748857742956,0.05613986,104680.0,104670.0,0.24668815]
[1748857743155,0.07524451,104680.0,104670.0,0.26248815]
[1748857743579,0.06569214,104680.0,104670.0,0.35834245]
[1748857745014,0.06569205,104680.0,104670.0,0.35834245]
[1748857745216,0.07524442,104680.0,104670.0,0.35834245]
[1748857745565,0.08479697,104680.0,104670.0,0.35834245]
[1748857745786,0.07524442,104680.0,104670.0,0.35834245]
[1748857747638,0.07524451,104680.0,104670.0,0.35834245]
[1748857747830,0.07524442,104680.0,104670.0,0.35834245]
[1748857748271,0.08479697,104680.0,104670.0,0.35834245]
[1748857749049,0.09434971,104680.0,104670.0,0.35834245]
[1748857749457,0.28540899,104680.0,104670.0,0.35834263]
[1748857749669,0.28540899,104680.0,104670.0,0.36789591]
[1748857749670,0.09435053,104680.0,104670.0,0.36789591]
[1748857749875,0.08479761,104680.0,104670.0,0.36789591]
[1748857750095,0.09435044,104680.0,104670.0,0.36789591]
[1748857750318,0.68790968,104680.0,104670.0,0.01105113]
[1748857750540,0.67050439,104680.0,104670.0,0.01105113]
[1748857759022,0.66880439,104680.0,104670.0,0.01105113]
[1748857761670,0.67050439,104680.0,104670.0,0.01105113]
[1748857762667,1.23275196,104680.0,104670.0,0.01105113]
[1748857762918,1.57275196,104680.0,104670.0,0.01105113]
[1748857763124,1.60144496,104680.0,104670.0,0.01105113]
[1748857764254,1.60144496,104680.0,104640.0,0.30177188]
[1748857764255,0.2006687,104650.0,104640.0,0.015]
[1748857764459,0.60252112,104650.0,104640.0,0.015]
[1748857764665,0.60252112,104650.0,104640.0,0.0311]
[1748857764875,0.58835558,104650.0,104640.0,0.0311]
[1748857765280,0.59791105,104650.0,104640.0,0.0311]
[1748857766723,0.60746643,104650.0,104640.0,0.23178797]
[1748857766940,0.60746643,104650.0,104640.0,0.25234436]
[1748857767137,0.60746643,104650.0,104640.0,0.24278797]
[1748857767369,0.59791105,104650.0,104640.0,0.24278797]
[1748857768322,0.59791105,104650.0,104640.0,0.23323149]
[1748857768525,0.59791105,104650.0,104640.0,0.24278806]
[1748857768750,0.59791105,104650.0,104640.0,0.25234454]
[1748857770101,0.59795105,104650.0,104640.0,0.25234454]
[1748857770309,0.59795105,104650.0,104640.0,0.0421]
[1748857770539,0.58839558,104650.0,104640.0,0.0421]
[1748857773670,0.59859558,104650.0,104640.0,0.011]
[1748857773875,1.54505437,104650.0,104640.0,0.011]
[1748857774101,1.54505437,104650.0,104630.0,0.01]
[1748857774102,0.20068788,104640.0,104630.0,0.01]
[1748857774336,1.42726452,104640.0,104630.0,0.01]
[1748857774744,1.45596752,104640.0,104630.0,0.01]
[1748857774952,6.95636267,104640.0,104630.0,0.01]
[1748857775171,6.95636267,104640.0,104620.0,0.0629]
[1748857775172,0.22714791,104630.0,104620.0,0.0629]
[1748857775379,0.72485463,104630.0,104620.0,0.0629486]
[1748857776650,0.72485463,104630.0,104620.0,0.0639486]
[1748857776882,6.11485463,104630.0,104620.0,0.0556588]
[1748857777099,6.11485463,104630.0,104620.0,0.03209881]
[1748857777317,6.10529733,104630.0,104590.0,0.23560488]
[1748857777547,0.62173657,104600.0,104590.0,0.34670507]
[1748857778253,0.62173657,104600.0,104590.0,0.35626575]
[1748857778883,0.62173657,104600.0,104590.0,0.34870507]
[1748857779094,0.65576807,104600.0,104590.0,0.34870507]
[1748857779891,0.65576807,104600.0,104590.0,0.35826575]
[1748857780327,0.65576807,104600.0,104590.0,0.36226575]
[1748857781667,0.66532829,104600.0,104590.0,0.37226575]
[1748857781909,0.65576871,104600.0,104590.0,0.36270507]
[1748857782332,0.64620885,104600.0,104590.0,0.3531443]
[1748857782540,0.24435643,104600.0,104590.0,0.36270498]
[1748857782748,0.04359108,104600.0,104590.0,0.38182607]
[1748857782969,0.05315085,104600.0,104590.0,0.38182607]
[1748857783184,0.07227084,104600.0,104590.0,0.38182607]
[1748857785339,0.66532784,104600.0,104590.0,0.36270498]
[1748857785538,0.67488797,104600.0,104590.0,0.37226557]
[1748857785813,0.05315085,104600.0,104590.0,0.38182607]
[1748857786030,0.04359108,104600.0,104590.0,0.38182607]
[1748857786237,0.04359099,104600.0,104590.0,0.38182607]
[1748857786455,0.0340315,104600.0,104590.0,0.78367849]
[1748857787748,0.0340315,104600.0,104590.0,0.38182607]
[1748857789358,0.001,104600.0,104590.0,1.44147497]
[1748857789993,0.00104,104600.0,104590.0,1.44147828]
[1748857790243,0.00104,104600.0,104590.0,1.44147798]
[1748857790370,0.00104,104600.0,104590.0,1.47493645]
[1748857790860,0.00104,104600.0,104590.0,1.47494579]
[1748857791032,0.00104,104600.0,104590.0,1.78208664]
[1748857791232,0.23681242,104640.0,104630.0,0.24066409]
[1748857791394,0.0361243,104640.0,104630.0,0.25022093]
[1748857791771,0.0170118,104640.0,104630.0,0.25022093]
[1748857791974,0.07656755,104640.0,104630.0,0.25022093]
[1748857792127,0.08612357,104640.0,104630.0,0.25022093]
[1748857792347,0.08612357,104640.0,104630.0,0.25122093]
[1748857792348,0.07856755,104640.0,104630.0,0.25122093]
[1748857792562,0.08812348,104640.0,104630.0,0.34707523]
[1748857792876,0.08612348,104640.0,104630.0,0.34607523]
[1748857793030,0.08912348,104640.0,104630.0,0.34707523]
[1748857793243,0.13188177,104640.0,104630.0,0.34707523]
[1748857793462,0.12988177,104640.0,104630.0,0.34707523]
[1748857794712,0.33056946,104640.0,104630.0,0.33751839]
[1748857794884,0.13943861,104640.0,104630.0,0.34707523]
[1748857795694,0.34012667,104640.0,104630.0,0.33751839]
[1748857795909,0.13943861,104640.0,104630.0,0.35663217]
[1748857797305,0.12988222,104640.0,104630.0,0.35663217]
[1748857798701,0.13943852,104640.0,104630.0,0.35663217]
[1748857798902,0.50325455,104650.0,104640.0,0.0325]
[1748857799307,0.50325455,104650.0,104640.0,0.22363149]
[1748857800346,0.50325455,104650.0,104640.0,0.24274454]
[1748857800562,0.80317455,104650.0,104640.0,0.24274454]
[1748857800774,0.83763542,104650.0,104640.0,0.0325]
[1748857800989,0.83763542,104650.0,104640.0,0.0425]
[1748857801851,0.84719108,104650.0,104640.0,0.0425]
[1748857802059,0.84719108,104650.0,104640.0,0.0261]
[1748857802889,0.85739108,104650.0,104640.0,0.01]
[1748857803929,0.85939108,104650.0,104640.0,0.011]
[1748857804343,0.84919108,104650.0,104640.0,0.011]
[1748857804561,0.85939108,104650.0,104640.0,0.011]
[1748857804774,6.85684987,104650.0,104640.0,0.011]
[1748857804989,0.61213697,104620.0,104610.0,0.0311]
[1748857805201,0.61213697,104620.0,104610.0,0.0154]
[1748857805837,0.20074544,104610.0,104600.0,0.10654494]
[1748857806052,0.60259786,104610.0,104600.0,0.20254513]
[1748857806504,0.6121569,104610.0,104600.0,0.40330993]
[1748857806718,0.60259786,104610.0,104600.0,0.21210535]
[1748857806936,0.60259786,104610.0,104600.0,0.12630019]
[1748857807155,0.60259786,104610.0,104600.0,0.03044589]
[1748857807414,0.60259786,104610.0,104600.0,0.03144589]
[1748857808049,0.60259786,104610.0,104600.0,0.01624589]
[1748857808266,0.60259786,104610.0,104600.0,0.02624589]
[1748857808476,0.60259786,104610.0,104600.0,0.02824589]
[1748857808477,0.60359786,104610.0,104600.0,0.02824589]
[1748857809757,0.90351786,104610.0,104600.0,0.02824589]
[1748857811716,0.90351786,104610.0,104600.0,0.04354589]
[1748857812146,0.90351786,104610.0,104600.0,0.24431069]
[1748857812357,0.50166544,104610.0,104600.0,0.25387082]
[1748857812624,0.60359786,104610.0,104600.0,0.25387082]
[1748857812831,0.60359786,104610.0,104600.0,0.26343086]
[1748857813039,0.60359786,104610.0,104600.0,0.27299081]
[1748857813265,0.20174544,104610.0,104600.0,0.26343086]
[1748857813939,0.19218631,104610.0,104600.0,0.25387082]
[1748857815797,0.59403873,104610.0,104600.0,0.25387082]
[1748857819281,0.40285242,104610.0,104600.0,0.26343077]
[1748857819493,0.00104,104610.0,104600.0,0.37840451]
[1748857823108,0.20269223,104620.0,104610.0,0.21986315]
[1748857823324,0.20269223,104620.0,104610.0,0.26042164]
[1748857823325,0.01911588,104620.0,104610.0,0.26042164]
[1748857823533,0.01911561,104620.0,104610.0,0.26042164]
[1748857823715,0.02867364,104620.0,104610.0,0.26042164]
[1748857824170,0.03823185,104620.0,104610.0,0.26042164]
[1748857824384,0.03823185,104620.0,104610.0,0.25086315]
[1748857824595,0.23895828,104620.0,104610.0,0.25186333]
[1748857824810,0.23895828,104620.0,104610.0,0.23274553]
[1748857825027,0.22940052,104620.0,104610.0,0.25186361]
[1748857825262,0.21984267,104620.0,104610.0,0.25186361]
[1748857825531,0.62169509,104620.0,104610.0,0.25186361]
[1748857825739,0.62169509,104620.0,104610.0,0.24230466]
[1748857825951,0.62169509,104620.0,104610.0,0.2518637]
[1748857826176,0.62169509,104620.0,104610.0,0.2618637]
[1748857826398,0.01911579,104620.0,104610.0,0.28098132]
[1748857826626,0.01911579,104620.0,104610.0,0.37683562]
[1748857826855,0.028674,104620.0,104610.0,0.37683562]
[1748857827490,0.02867373,104620.0,104610.0,0.37683562]
[1748857828631,0.02867364,104620.0,104610.0,0.37683562]
[1748857829059,0.01911561,104620.0,104610.0,0.37683562]
[1748857829259,0.92015244,104630.0,104610.0,0.37683562]
[1748857829260,0.72898603,104630.0,104620.0,0.0313]
[1748857829550,0.92016482,104630.0,104620.0,0.0313]
[1748857829748,0.62024482,104630.0,104620.0,0.23202643]
[1748857829959,0.92012482,104630.0,104620.0,0.23202643]
[1748857830090,0.92012482,104630.0,104620.0,0.24158474]
[1748857830091,0.5182724,104630.0,104620.0,0.24158474]
[1748857830321,0.92212482,104630.0,104620.0,0.24258474]
[1748857830723,0.92212482,104630.0,104620.0,0.23302643]
[1748857830922,0.2203924,104630.0,104620.0,0.23302643]
[1748857831128,0.5212724,104630.0,104620.0,0.25214295]
[1748857831337,0.003,104630.0,104620.0,0.76896518]
[1748857831772,0.003,104630.0,104620.0,0.79354013]
[1748857831974,0.003,104630.0,104620.0,0.7935399]
[1748857832528,0.003,104630.0,104620.0,0.77566721]
[1748857832728,0.03167044,104630.0,104620.0,0.39167542]
[1748857833050,0.02211341,104630.0,104620.0,0.39167112]
[1748857833547,0.02211341,104630.0,104620.0,0.39168079]
[1748857834637,0.03167044,104630.0,104620.0,0.39168079]
[1748857834849,0.03167044,104630.0,104620.0,0.39167888]
[1748857835077,0.02211341,104630.0,104620.0,0.39167888]
[1748857835283,0.24193489,104630.0,104620.0,0.37381098]
[1748857835483,0.61511687,104630.0,104620.0,0.0323]
[1748857835906,0.61511687,104630.0,104620.0,0.23302615]
[1748857836109,0.21326445,104630.0,104620.0,0.25214258]
[1748857836311,0.21326445,104630.0,104620.0,0.24258455]
[1748857836548,0.22282193,104630.0,104620.0,0.2521424]
[1748857836763,0.003,104630.0,104620.0,0.35755446]
[1748857836971,0.01255684,104630.0,104620.0,0.35755446]
[1748857837176,0.003,104630.0,104620.0,0.35755446]
[1748857837375,0.01255675,104630.0,104620.0,0.35755446]
[1748857837715,0.02211369,104630.0,104620.0,0.35755446]
[1748857838164,0.01255675,104630.0,104620.0,0.35755446]
[1748857838367,0.02211378,104630.0,104620.0,0.35755446]
[1748857838666,0.003,104630.0,104620.0,0.35755446]
[1748857838898,0.01255666,104630.0,104620.0,0.37541349]
[1748857839064,0.01255666,104630.0,104620.0,0.37541341]
[1748857839278,0.003,104630.0,104620.0,0.3754133]
[1748857839993,0.0221135,104630.0,104620.0,0.37541255]
[1748857840534,0.01255666,104630.0,104620.0,0.37541255]
[1748857840678,0.01255666,104630.0,104620.0,0.37541253]
[1748857840877,0.02211341,104630.0,104620.0,0.35362973]
[1748857841090,0.003,104630.0,104620.0,0.35362973]
[1748857841301,0.01255666,104630.0,104620.0,0.35362973]
[1748857841912,0.02211341,104630.0,104620.0,0.35362973]
[1748857842112,0.003,104630.0,104620.0,0.35362973]
[1748857843269,0.003,104630.0,104620.0,0.36032628]
[1748857843478,0.003,104630.0,104620.0,0.35362973]
[1748857843887,0.01255666,104630.0,104620.0,0.37148721]
[1748857844033,0.01255666,104630.0,104620.0,0.35362973]
[1748857844249,0.01255666,104630.0,104620.0,0.37148725]
[1748857844446,0.003,104630.0,104620.0,0.35362973]
[1748857844700,0.003,104630.0,104620.0,0.36702335]
[1748857845126,0.003,104630.0,104620.0,0.3603263]
[1748857845328,0.01255675,104630.0,104620.0,0.3603263]
[1748857845506,0.01255666,104630.0,104620.0,0.3603263]
[1748857845703,0.003,104630.0,104620.0,0.3603263]
[1748857846347,0.003,104630.0,104620.0,0.36702415]
[1748857846546,0.003,104630.0,104620.0,0.37818726]
[1748857846683,0.003,104630.0,104620.0,0.38488509]
[1748857847094,0.003,104630.0,104620.0,0.39488501]
[1748857847495,0.003,104630.0,104620.0,0.3881907]
[1748857847699,0.003,104630.0,104620.0,0.39488985]
[1748857848473,0.003,104630.0,104620.0,0.3881907]
[1748857848678,0.003,104630.0,104620.0,0.38819069]
[1748857848881,0.003,104630.0,104620.0,0.39489018]
[1748857849056,0.003,104630.0,104620.0,0.39489839]
[1748857849473,0.003,104630.0,104620.0,0.3703263]
[1748857850023,0.003,104630.0,104620.0,0.39490467]
[1748857850850,0.01255675,104630.0,104620.0,0.39490467]
[1748857851062,0.003,104630.0,104620.0,1.13675812]
[1748857851275,0.003,104630.0,104620.0,0.74160798]
[1748857851476,0.003,104630.0,104620.0,0.74160799]
[1748857851889,0.003,104630.0,104620.0,0.74160786]
[1748857852120,0.001,104630.0,104620.0,0.74060786]
[1748857852331,0.001,104630.0,104620.0,0.74160728]
[1748857852533,0.001,104630.0,104620.0,0.71702977]
[1748857852921,0.001,104630.0,104620.0,0.74160569]
[1748857853136,0.4305214,104640.0,104630.0,0.21982139]
[1748857853348,0.4305214,104640.0,104620.0,0.25048459]
[1748857853349,0.60708391,104640.0,104620.0,0.25048459]
[1748857853561,0.62167363,104630.0,104620.0,0.29146641]
[1748857853779,0.62167363,104630.0,104620.0,0.30102435]
[1748857853991,0.44008126,104630.0,104620.0,0.3095822]
[1748857854212,0.02867145,104630.0,104620.0,0.31914212]
[1748857854418,0.03822884,104630.0,104620.0,0.31914212]
[1748857854618,0.03822884,104630.0,104620.0,0.31914209]
[1748857854619,0.02867145,104630.0,104620.0,0.31914209]
[1748857854818,0.02867145,104630.0,104620.0,0.31914208]
[1748857855038,0.94609102,104630.0,104620.0,0.04127927]
[1748857855249,0.91287687,104630.0,104620.0,0.21456807]
[1748857855457,0.91287687,104630.0,104620.0,0.02340004]
[1748857855670,0.50146715,104630.0,104620.0,0.02340004]
[1748857855875,0.90331957,104630.0,104620.0,0.02340004]
[1748857857852,0.50146715,104630.0,104620.0,0.02340004]
[1748857858054,0.90331957,104630.0,104620.0,0.02340004]
[1748857860072,0.90331957,104630.0,104620.0,0.03910004]
[1748857860541,0.20170715,104630.0,104620.0,0.05510004]
[1748857860730,0.90331957,104630.0,104620.0,0.05510004]
[1748857860942,0.20170715,104630.0,104620.0,0.24626807]
[1748857861150,0.90331957,104630.0,104620.0,0.26538459]
[1748857861362,0.90331957,104630.0,104620.0,0.05510004]
[1748857861642,0.90331957,104630.0,104620.0,0.02340004]
[1748857861878,0.91741957,104630.0,104620.0,0.02340004]
[1748857862513,0.60355957,104630.0,104620.0,0.02340004]
[1748857862723,0.60355957,104630.0,104620.0,0.25572647]
[1748857862934,0.90231957,104630.0,104620.0,0.25572647]
[1748857863216,0.90231957,104630.0,104620.0,0.05500004]
[1748857863427,0.90431957,104630.0,104620.0,0.05600004]
[1748857863842,0.90431957,104630.0,104620.0,0.03940004]
[1748857864257,0.90531957,104630.0,104620.0,0.03940004]
[1748857864685,0.91941957,104630.0,104620.0,0.02440004]
[1748857864939,6.08251472,104630.0,104620.0,0.02440004]
[1748857865578,6.42251472,104630.0,104620.0,0.02440004]
[1748857866014,0.21482624,104620.0,104610.0,0.01]
[1748857866226,0.72509951,104620.0,104610.0,0.01]
[1748857867106,0.72509951,104620.0,104610.0,0.011]
[1748857868707,0.72779951,104620.0,104610.0,0.011]
[1748857869845,0.72509951,104620.0,104610.0,0.011]
[1748857870226,0.72779951,104620.0,104610.0,0.011]
[1748857870647,6.61550623,104620.0,104610.0,0.00176]
[1748857872659,6.61550623,104620.0,104610.0,0.00076]
[1748857872866,6.61750623,104620.0,104610.0,0.00176]
[1748857873077,6.61850623,104620.0,104610.0,0.00176]
[1748857877772,6.19981381,104620.0,104610.0,0.00176]
[1748857878001,6.49961381,104620.0,104610.0,0.03196]
[1748857878233,1.04897678,104620.0,104610.0,0.03196]
[1748857878468,1.33921866,104620.0,104610.0,0.03196]
[1748857878741,1.35375951,104620.0,104610.0,0.03196]
[1748857878969,0.96011951,104620.0,104610.0,0.03196]
[1748857879193,1.35371951,104620.0,104610.0,0.03196]
[1748857881396,1.35371951,104620.0,104610.0,0.00176]
[1748857881836,6.89808315,104620.0,104610.0,0.00176]
[1748857882040,6.91218315,104620.0,104610.0,0.00176]
[1748857882262,6.81967193,104620.0,104610.0,0.00176]
[1748857883355,6.80557193,104620.0,104610.0,0.00176]
[1748857884024,6.80557193,104620.0,104610.0,0.01776]
[1748857884248,6.40371951,104620.0,104610.0,0.01776]
[1748857887098,6.40371951,104620.0,104610.0,0.03276]
[1748857887504,1.35371951,104620.0,104610.0,0.03276]
[1748857888366,0.94557866,104620.0,104610.0,0.03276]
[1748857888567,1.33917866,104620.0,104610.0,0.03276]
[1748857890843,1.33913866,104620.0,104610.0,0.03276]
[1748857891875,1.35367951,104620.0,104610.0,0.03276]
[1748857892097,6.80553193,104620.0,104610.0,0.00176]
[1748857892744,6.40367951,104620.0,104610.0,0.00176]
[1748857893178,6.80553193,104620.0,104610.0,0.00176]
[1748857894385,6.91548623,104620.0,104610.0,0.00176]
[1748857894590,7.00799745,104620.0,104610.0,0.00176]
[1748857894794,6.91548623,104620.0,104610.0,0.00176]
[1748857897619,6.90138623,104620.0,104610.0,0.00176]
[1748857898626,6.49953381,104620.0,104610.0,0.00176]
[1748857899252,6.49953381,104620.0,104610.0,0.01806]
[1748857900073,6.49953381,104620.0,104610.0,0.00176]
[1748857900710,6.90138623,104620.0,104610.0,0.00176]
[1748857901254,5.60528629,104610.0,104600.0,0.02574589]
[1748857901521,6.52215418,104610.0,104600.0,0.02574589]
[1748857902572,6.52315418,104610.0,104600.0,0.02574589]
[1748857903012,0.20076462,104600.0,104590.0,0.026]
[1748857903213,6.04613704,104600.0,104590.0,0.026]
[1748857903625,6.49653219,104600.0,104590.0,0.01]
[1748857903834,0.20078383,104590.0,104580.0,0.0163]
[1748857904071,0.60263625,104590.0,104580.0,0.0163]
[1748857904285,0.20078383,104590.0,104580.0,0.0163]
[1748857904483,0.60263625,104590.0,104580.0,0.0163]
[1748857905635,0.60263625,104590.0,104580.0,0.0173]
[1748857906008,0.00956096,104590.0,104580.0,0.22474115]
[1748857906136,1.01519825,104590.0,104580.0,0.24386462]
[1748857906351,0.62175825,104590.0,104580.0,0.24386462]
[1748857906536,0.61334574,104590.0,104580.0,0.25342603]
[1748857906738,0.42212287,104590.0,104580.0,0.25342603]
[1748857906979,0.61434574,104590.0,104580.0,0.25342603]
[1748857907303,0.52058574,104590.0,104580.0,0.25342603]
[1748857908108,0.53014688,104590.0,104580.0,0.24386462]
[1748857908333,0.53014688,104590.0,104580.0,0.2438648]
[1748857908497,0.92243844,104590.0,104580.0,0.2438648]
[1748857908865,0.92243844,104590.0,104580.0,0.25342649]
[1748857909122,0.95060982,104590.0,104580.0,0.26298809]
[1748857910182,0.94104886,104590.0,104580.0,0.23430302]
[1748857910395,0.93148781,104590.0,104580.0,0.23430302]
[1748857910596,0.92192667,104590.0,104580.0,0.0335]
[1748857911747,1.32377909,104590.0,104580.0,0.0335]
[1748857911955,0.92192667,104590.0,104580.0,0.0335]
[1748857912983,0.92092667,104590.0,104580.0,0.0335]
[1748857913394,0.92192667,104590.0,104580.0,0.0325]
[1748857913592,1.26192667,104590.0,104580.0,0.0325]
[1748857913798,0.21039818,104570.0,104560.0,0.0308]
[1748857914017,0.6122506,104570.0,104560.0,0.2405818]
[1748857914244,0.6122506,104570.0,104560.0,0.0308]
[1748857914451,0.6122506,104570.0,104560.0,0.23164161]
[1748857914656,0.64119024,104570.0,104560.0,0.24058173]
[1748857914955,0.64119024,104570.0,104560.0,0.24106785]
[1748857915205,0.64119024,104570.0,104560.0,0.25063155]
[1748857915529,0.94087024,104570.0,104560.0,0.24169143]
[1748857915759,0.94087024,104570.0,104560.0,0.25063045]
[1748857915963,0.94087024,104570.0,104560.0,0.24106675]
[1748857916187,0.94087024,104570.0,104560.0,0.23212773]
[1748857916392,0.94187024,104570.0,104560.0,0.25363037]
[1748857917136,0.94187024,104570.0,104560.0,0.24469152]
[1748857917447,0.64219024,104570.0,104560.0,0.03428612]
[1748857917649,0.63262746,104570.0,104560.0,0.03428612]
[1748857919218,0.63262746,104570.0,104560.0,0.01888612]
[1748857919434,0.63262746,104570.0,104560.0,0.03518612]
[1748857919630,0.23077504,104570.0,104560.0,0.03518612]
[1748857919832,0.63262746,104570.0,104560.0,0.03518612]
[1748857920659,6.62662743,104570.0,104560.0,0.00348612]
[1748857920855,0.21042498,104550.0,104540.0,0.03244]
[1748857921060,0.60271306,104550.0,104540.0,0.03244]
[1748857921268,0.99615306,104550.0,104540.0,0.03244]
[1748857921503,0.59430064,104550.0,104540.0,0.03244]
[1748857921707,0.99615306,104550.0,104540.0,0.03244]
[1748857922128,0.29671494,104550.0,104540.0,0.03244]
[1748857922337,1.50992063,104550.0,104540.0,0.03244]
[1748857922536,1.10806821,104550.0,104540.0,0.03244]
[1748857922995,1.14352736,104550.0,104540.0,0.03244]
[1748857923196,0.64622064,104550.0,104540.0,0.03344]
[1748857923559,1.04907306,104550.0,104540.0,0.03344]
[1748857923756,0.26142498,104550.0,104540.0,0.23431985]
[1748857923868,0.27098978,104550.0,104540.0,0.2438852]
[1748857924072,0.27098978,104550.0,104540.0,0.25345045]
[1748857924313,0.07969301,104550.0,104540.0,0.26301552]
[1748857924523,0.57438904,104550.0,104540.0,0.25345045]
[1748857924777,0.57438904,104550.0,104540.0,0.26301561]
[1748857925352,0.57438904,104550.0,104540.0,0.25345045]
[1748857925753,0.27098904,104550.0,104540.0,0.25345045]
[1748857925958,0.48154543,104550.0,104540.0,0.25345027]
[1748857926166,0.0701284,104550.0,104540.0,0.25345027]
[1748857926370,0.07969292,104550.0,104540.0,0.25345027]
[1748857926576,0.28055356,104550.0,104540.0,0.2438852]
[1748857926796,0.08925753,104550.0,104540.0,0.25345027]
[1748857927002,0.07969292,104550.0,104540.0,0.25345027]
[1748857927435,0.0701284,104550.0,104540.0,0.25345027]
[1748857927643,0.07969292,104550.0,104540.0,0.25345027]
[1748857928285,0.051,104550.0,104540.0,0.34930457]
[1748857928695,0.051,104550.0,104540.0,0.35822544]
[1748857928900,0.06056416,104550.0,104540.0,0.3582263]
[1748857929106,0.07969284,104550.0,104540.0,0.34930457]
[1748857929324,0.28055403,104550.0,104540.0,0.2438852]
[1748857929775,0.051,104550.0,104540.0,0.35886982]
[1748857930176,0.06056397,104550.0,104540.0,0.35886982]
[1748857930593,0.06056397,104550.0,104540.0,0.36779524]
[1748857930990,0.07012803,104550.0,104540.0,0.36779524]
[1748857931408,0.06056397,104550.0,104540.0,0.35886982]
[1748857931639,0.051,104550.0,104540.0,0.36779524]
[1748857931912,0.051,104550.0,104540.0,0.36779711]
[1748857932131,0.051,104550.0,104540.0,0.36779699]
[1748857932575,0.06056416,104550.0,104540.0,0.36779694]
[1748857932769,0.051,104550.0,104540.0,0.37449365]
[1748857932923,0.051,104550.0,104540.0,0.37449552]
[1748857933558,0.051,104550.0,104540.0,0.37449603]
[1748857934127,0.051,104550.0,104540.0,0.36556691]
[1748857934328,0.051,104550.0,104540.0,0.36779927]
[1748857934559,0.051,104550.0,104540.0,0.37449636]
[1748857935120,0.051,104550.0,104540.0,0.38449762]